fUSD/lending_fUSD_20250823
["ID","MTS","AMOUNT","RATE_DAILY","PERIOD"]
[381055197,1755978642415,-37684.3228306,0.0002598,3]
[381055199,1755978642424,-300.0,0.00026,2]
[381055201,1755978642433,-1951.15507167,0.00026,3]
[381055202,1755978642443,-1002.0,0.00026,2]
[381055204,1755978642452,-600.0,0.00026,2]
[381055206,1755978642462,-500.0,0.00026028,2]
[381055209,1755978642471,-150.0,0.00026053,2]
[381055211,1755978642483,-500.0,0.00026063,7]
[381055212,1755978642495,-500.0,0.00026063,7]
[381055214,1755978642504,-500.0,0.00026063,7]
[381055216,1755978642513,-500.0,0.00026063,7]
[381055218,1755978642522,-500.0,0.00026063,7]
[381055220,1755978642531,-500.0,0.00026063,7]
[381055222,1755978642540,-500.0,0.00026063,7]
[381055224,1755978642550,-500.0,0.00026063,7]
[381055226,1755978642559,-500.0,0.00026063,7]
[381055229,1755978642569,-500.0,0.00026063,7]
[381055231,1755978642579,-541.0,0.00026072,2]
[381055233,1755978642589,-844.27675029,0.000261,7]
[381055234,1755978642598,-458.60200496,0.000261,7]
[381055236,1755978642608,-212.10093811,0.000261,7]
[381055239,1755978642618,-1000.0,0.00026121,2]
[381055241,1755978642628,-1000.0,0.00026121,2]
[381055243,1755978642638,-500.0,0.00026132,2]
[381055245,1755978642647,-500.0,0.00026132,2]
[381055247,1755978642657,-500.0,0.00026132,2]
[381055249,1755978642667,-478.0,0.00026132,2]
[381055251,1755978642677,-150.0,0.00026161,2]
[381055252,1755978642687,-37684.3228306,0.00026175,3]
[381055255,1755978642697,-302.0,0.00026175,7]
[381055256,1755978642706,-19305.0925844,0.00026195,2]
[381055259,1755978642716,-200.0,0.00026259,2]
[381055260,1755978642725,-183.36312491,0.00026268,2]
[381055262,1755978642735,-500.0,0.00026273,2]
[381055264,1755978642744,-467.83328922,0.00026273,2]
[381055267,1755978642756,-11810.15637786,0.00026283,3]
[381055269,1755978642770,-1763.34352191,0.00026283,3]
[381055271,1755978642784,-988.05227216,0.00026283,3]
[381055274,1755978642803,-354.99079786,0.00026283,3]
[381055277,1755978642819,-609.46648831,0.00026283,3]
[381055280,1755978642838,-7878.8381512,0.00026283,3]
[381055396,1755978644050,-778.0,0.000247,2]
[381055398,1755978644060,-14279.4752213,0.00026283,3]
[381055400,1755978644069,-6932.59732084,0.00026293,5]
[381055409,1755978644137,-647.94447992,0.00026293,5]
[381055694,1755978646937,-429.99044103,0.00026293,5]
[381055696,1755978646948,-4565.26678886,0.00026293,5]
[381055698,1755978646963,-3349.80000006,0.00026293,5]
[381055700,1755978646976,-15021.7465397,0.00026293,5]
[381055702,1755978646986,-500.0,0.00026302,2]
[381055704,1755978646996,-1759.18920074,0.00026323,2]
[381055706,1755978647006,-200.0,0.0002639,2]
[381055708,1755978647016,-213.59,0.000264,2]
[381055710,1755978647025,-1000.0,0.000264,2]
[381055712,1755978647034,-200.0,0.000264,2]
[381055714,1755978647043,-500.0,0.00026406,2]
[381055716,1755978647053,-500.0,0.00026406,2]
[381055718,1755978647063,-500.0,0.00026406,2]
[381055720,1755978647073,-478.0,0.00026406,2]
[381055722,1755978647082,-469.06,0.00026432,2]
[381055723,1755978647091,-799.21,0.00026432,2]
[381055725,1755978647101,-799.21,0.00026432,2]
[381055727,1755978647111,-799.21,0.00026432,2]
[381055729,1755978647120,-799.21,0.00026432,2]
[381055731,1755978647130,-469.06,0.00026432,2]
[381055733,1755978647139,-469.06,0.00026432,2]
[381055735,1755978647149,-469.06,0.00026432,2]
[381055736,1755978647159,-799.21,0.00026432,2]
[381055738,1755978647168,-469.06,0.00026432,2]
[381055740,1755978647178,-1583.85,0.00026432,2]
[381055741,1755978647187,-469.06,0.00026432,2]
[381055743,1755978647197,-797.21,0.00026432,2]
[381055745,1755978647206,-799.21,0.00026432,2]
[381055746,1755978647216,-799.21,0.00026432,2]
[381055748,1755978647225,-799.21,0.00026432,2]
[381055750,1755978647234,-150.0,0.00026438,2]
[381055752,1755978647244,-262.27838972,0.00026439,2]
[381055753,1755978647253,-1458.22,0.00026439,2]
[381055755,1755978647263,-400.0,0.0002647,2]
[381055756,1755978647272,-400.0,0.0002647,2]
[381055758,1755978647281,-273.7340911,0.00026485,2]
[381055760,1755978647290,-1281.4085756,0.00026485,2]
[381055762,1755978647299,-298.26089446,0.00026503,2]
[381055763,1755978647308,-1425.0,0.00026516,2]
[381055765,1755978647318,-600.0,0.00026548,2]
[381055767,1755978647328,-1121.53071492,0.00026559,10]
[381055768,1755978647337,-1107.15,0.0002657,7]
[381055770,1755978647346,-193.91159381,0.0002657,7]
[381055772,1755978647358,-913.23840619,0.0002657,7]
[381055774,1755978647367,-4307.5484,0.00026574,2]
[381055776,1755978647376,-500.0,0.00026576,2]
[381055777,1755978647385,-500.0,0.000266,9]
[381055779,1755978647395,-500.0,0.00026625,2]
[381055781,1755978647406,-150.0,0.00026641,2]
[381055782,1755978647415,-253.6861405,0.00026642,2]
[381055784,1755978647424,-996.5,0.00026646,2]
[381055786,1755978647433,-1003.5,0.00026666,2]
[381055787,1755978647443,-1500.0,0.00026668,2]
[381055789,1755978647453,-1500.0,0.00026668,2]
[381055791,1755978647463,-928.44,0.00026676,2]
[381055792,1755978647472,-500.0,0.0002668,2]
[381055794,1755978647481,-500.0,0.0002668,2]
[381055796,1755978647491,-500.0,0.0002668,2]
[381055798,1755978647500,-478.0,0.0002668,2]
[381055799,1755978647510,-504.0,0.00026696,7]
[381055801,1755978647519,-1000.0,0.00026696,2]
[381055803,1755978647529,-1100.0,0.000267,9]
[381055805,1755978647538,-1425.0,0.00026756,2]
[381055806,1755978647547,-150.51791387,0.00026783,2]
[381055808,1755978647557,-150.0,0.00026795,2]
[381055810,1755978647566,-1600.0,0.000268,9]
[381055812,1755978647576,-1000.0,0.00026809,2]
[381055813,1755978647585,-5840.44918744,0.00026811,3]
[381055818,1755978647626,-500.0,0.00013698,2]
[381055820,1755978647636,-31843.87364316,0.00026811,3]
[381055821,1755978647646,-150.0,0.00026813,2]
[381055823,1755978647656,-1000.0,0.00026821,2]
[381055825,1755978647665,-1425.0,0.00026831,2]
[381055827,1755978647677,-1107.15,0.00026844,7]
[381055828,1755978647688,-1107.15,0.00026844,7]
[381055830,1755978647697,-500.0,0.0002685,2]
[381055832,1755978647707,-1425.0,0.00026864,2]
[381055834,1755978647716,-1063.31677373,0.00026878,2]
[381055835,1755978647726,-1425.0,0.0002688,2]
[381055837,1755978647735,-3417.87840798,0.000269,3]
[381055839,1755978647745,-1015.03554264,0.000269,2]
[381055841,1755978647756,-2200.0,0.000269,9]
[381055843,1755978647767,-504.0,0.00026926,7]
[381055845,1755978647776,-1043.775,0.00026928,2]
[381055846,1755978647786,-500.0,0.00026954,2]
[381055848,1755978647796,-500.0,0.00026954,2]
[381055850,1755978647805,-500.0,0.00026954,2]
[381055852,1755978647814,-478.0,0.00026954,2]
[381055854,1755978647824,-1000.0,0.00026971,2]
[381055855,1755978647833,-500.0,0.00026973,2]
[381055857,1755978647843,-30947.34557041,0.0002699,6]
[381055859,1755978647853,-300.0,0.00027,2]
[381055861,1755978647863,-168.0,0.00027,7]
[381055862,1755978647873,-228.0,0.00027,2]
[381055864,1755978647882,-373.0,0.00027,2]
[381055866,1755978647891,-165.7,0.00027,16]
[381055868,1755978647901,-690.85661,0.00027,2]
[381055870,1755978647910,-500.0,0.00027016,2]
[381055871,1755978647919,-1000.0,0.00027018,2]
[381055873,1755978647929,-1759.18920074,0.00027039,2]
[381055875,1755978647938,-37684.3228306,0.00027044,3]
[381055877,1755978647947,-457.0,0.00027064,7]
[381055879,1755978647957,-300.0,0.0002707,2]
[381055880,1755978647968,-400.0,0.0002707,2]
[381055882,1755978647977,-1011.53,0.000271,2]
[381055884,1755978647987,-811.5952,0.000271,2]
[381055886,1755978647996,-811.5952,0.000271,2]
[381055888,1755978648005,-195.7274,0.000271,2]
[381055889,1755978648015,-195.7274,0.000271,2]
[381055891,1755978648024,-1107.15,0.00027118,7]
[381055893,1755978648034,-1107.15,0.00027118,7]
[381055895,1755978648045,-3599.42,0.00027123,2]
[381055897,1755978648055,-262.43,0.00027123,4]
[381055898,1755978648064,-500.0,0.00027124,2]
[381055900,1755978648074,-895.56,0.00027179,7]
[381055902,1755978648084,-169.78075248,0.00027205,30]
[381055904,1755978648094,-2000.0,0.00027216,2]
[381055906,1755978648103,-1197.13049338,0.00027216,2]
[381055907,1755978648113,-500.0,0.00027228,2]
[381055909,1755978648122,-500.0,0.00027228,2]
[381055911,1755978648132,-500.0,0.00027228,2]
[381055913,1755978648141,-478.0,0.00027228,2]
[381055915,1755978648150,-206.92906337,0.0002725,2]
[381055916,1755978648159,-160.05,0.00027285,2]
[381055918,1755978648169,-1002.0,0.000273,2]
[381055920,1755978648179,-2000.0,0.000273,2]
[381055922,1755978648188,-2282.33280037,0.000273,2]
[381055923,1755978648197,-37684.3228306,0.0002732,3]
[381055925,1755978648207,-150.0,0.00027323,2]
[381055927,1755978648216,-804.24252844,0.00027325,2]
[381055929,1755978648227,-1025.01498723,0.00027327,2]
[381055931,1755978648237,-1245.78744602,0.00027329,2]
[381055933,1755978648246,-152.0,0.0002733,3]
[381055934,1755978648256,-1013.11,0.0002733,2]
[381055936,1755978648265,-3851.55,0.0002733,2]
[381055938,1755978648277,-1466.5599048,0.00027331,2]
[381055940,1755978648287,-1687.33236359,0.00027333,2]
[381055942,1755978648296,-1908.10482238,0.00027335,2]
[381055944,1755978648306,-2128.87728117,0.00027337,2]
[381055946,1755978648316,-2349.64973995,0.00027338,2]
[381055947,1755978648326,-502.70842006,0.00027339,15]
[381055949,1755978648335,-2570.42219874,0.0002734,2]
[381055951,1755978648345,-206197.90499702,0.0002734,3]
[381055962,1755978648462,-557.017942,0.0002734,3]
[381055964,1755978648473,-1061.8,0.0002734,3]
[381055976,1755978648600,-3012.7632271,0.0002734,3]
[381059575,1755978794056,535.733544,0.00028767,120]
[381059576,1755978796949,2000.0,0.00028767,120]
[381059577,1755978801369,500.0,0.00028767,120]
[381059578,1755978804904,500.0,0.00028767,120]
[381059581,1755978859986,-2500.0,0.000147,2]
[381059582,1755978860010,-513.0,0.000147,2]
[381059598,1755979395536,2000.0,0.00028767,120]
[381059599,1755979401671,526.469411,0.00028767,120]
[381059607,1755979585752,288.0,0.00028767,120]
[381059715,1755979833100,-500.0,0.00013696,2]
[381059717,1755979833110,-315.56776138,0.00013696,2]
[381059719,1755979833122,-2000.0,0.00013697,3]
[381059721,1755979833132,-2500.0,0.00013698,2]
[381059723,1755979833142,-500.0,0.00013698,2]
[381059725,1755979833152,-789.17,0.00013699,2]
[381059727,1755979833161,-300.0,0.00014296,2]
[381059729,1755979833172,-2500.0,0.00014297,2]
[381059731,1755979833182,-500.0,0.00014297,2]
[381059733,1755979833191,-151.0,0.00014691,2]
[381059735,1755979833201,-150.74,0.000147,2]
[381059737,1755979833211,-151.41,0.000147,2]
[381059739,1755979833220,-1523.0,0.00014723,2]
[381059741,1755979833229,-250.0,0.00015,2]
[381059743,1755979833239,-500.0,0.00015065,2]
[381059745,1755979833249,-2500.0,0.00015065,2]
[381059747,1755979833258,-2000.0,0.00015065,3]
[381059749,1755979833268,-2500.0,0.00015066,2]
[381059751,1755979833277,-500.0,0.00015066,2]
[381059752,1755979833286,-250.0,0.00015066,2]
[381059754,1755979833296,-150.0,0.000153,2]
[381059756,1755979833305,-1200.0,0.00016116,2]
[381059758,1755979833315,-155.0,0.00016117,2]
[381059759,1755979833325,-399.999999,0.00016438,2]
[381059760,1755979833340,-151.0,0.0001743,2]
[381059761,1755979833350,-1034.0,0.00017618,2]
[381059762,1755979833359,-378.0,0.00017644,2]
[381059763,1755979833370,-500.0,0.00017808,2]
[381059764,1755979833379,-467.42,0.000189,2]
[381059765,1755979833389,-458.60200496,0.00018954,2]
[381059766,1755979833399,-212.10093811,0.00018954,2]
[381059767,1755979833408,-844.27675029,0.00018954,2]
[381059768,1755979833418,-503.45,0.000201,2]
[381059769,1755979833428,-151.0,0.00020169,2]
[381059770,1755979833437,-789.17,0.00020187,2]
[381059771,1755979833447,-500.0,0.000213,2]
[381059772,1755979833456,-193.83,0.00021788,2]
[381059773,1755979833466,-4867.56488056,0.00022,2]
[381059774,1755979833476,-600.0,0.00022057,2]
[381059775,1755979833485,-600.0,0.00022057,2]
[381059776,1755979833495,-600.0,0.00022057,2]
[381059777,1755979833504,-600.0,0.00022057,2]
[381059778,1755979833514,-600.0,0.00022057,2]
[381059779,1755979833524,-600.0,0.00022057,2]
[381059780,1755979833533,-600.0,0.00022057,2]
[381059781,1755979833543,-600.0,0.00022057,2]
[381059782,1755979833552,-519.48084729,0.00022057,2]
[381059784,1755979833562,-200.0,0.00022057,2]
[381059785,1755979833571,-4153.0,0.00022071,2]
[381059787,1755979833581,-1000.0,0.00022084,2]
[381059788,1755979833590,-724.98,0.000221,2]
[381059789,1755979833600,-666.0,0.00022147,3]
[381059790,1755979833610,-322.6107,0.00022238,2]
[381059791,1755979833620,-267.46074303,0.00022238,2]
[381059792,1755979833630,-695.39793187,0.00022238,2]
[381059793,1755979833641,-160.0,0.00022238,2]
[381059794,1755979833650,-5199.43684444,0.00022238,2]
[381059795,1755979833660,-2424.45,0.00022241,30]
[381059796,1755979833670,-4573.88404807,0.00022293,2]
[381059797,1755979833680,-250.0,0.00022363,2]
[381059798,1755979833691,-1000.0,0.00022402,2]
[381059799,1755979833700,-600.0,0.00022605,2]
[381059800,1755979833710,-151.0,0.00022908,2]
[381059801,1755979833720,-200.0,0.00023055,2]
[381059802,1755979833729,-600.0,0.00023153,2]
[381059803,1755979833739,-724.98,0.00023298,2]
[381059804,1755979833749,-160.0,0.00023607,2]
[381059805,1755979833758,-277.35679052,0.00023607,2]
[381059806,1755979833768,-600.0,0.00023701,2]
[381059807,1755979833778,-2123.95,0.00024109,2]
[381059808,1755979833788,-600.0,0.00024249,2]
[381059809,1755979833798,-4689.5195,0.00024395,2]
[381059810,1755979833808,-1905.0,0.0002445,2]
[381059811,1755979833818,-1510.37,0.000245,7]
[381059812,1755979833828,-724.98,0.0002455,2]
[381059813,1755979833838,-1905.0,0.00024702,2]
[381059814,1755979833848,-160.08,0.00024787,2]
[381059815,1755979833858,-600.0,0.00024797,2]
[381059816,1755979833868,-301.74,0.000249,2]
[381059817,1755979833878,-28884.18919916,0.000249,2]
[381059818,1755979833889,-1905.0,0.00024954,2]
[381059819,1755979833899,-287.61899177,0.00024976,2]
[381059820,1755979833909,-626.08215335,0.00024977,2]
[381059821,1755979833920,-300.0,0.00025,2]
[381059822,1755979833930,-300.0,0.00025,2]
[381059823,1755979833941,-343.299999,0.00025,2]
[381059824,1755979833951,-226.85,0.00025026,2]
[381059825,1755979833960,-4153.0,0.00025071,2]
[381059826,1755979833970,-5000.0,0.00025163,2]
[381059827,1755979833985,-1000.0,0.00025202,2]
[381059828,1755979833995,-1905.0,0.00025206,2]
[381059829,1755979834006,-833.97754237,0.00025206,2]
[381059830,1755979834016,-300.0,0.000253,2]
[381059831,1755979834026,-600.0,0.00025345,2]
[381059832,1755979834039,-167.01,0.00025451,2]
[381059833,1755979834051,-305.7024,0.00025452,10]
[381059834,1755979834062,-1905.0,0.00025458,2]
[381059835,1755979834072,-799.21,0.00025473,2]
[381059836,1755979834082,-799.21,0.00025473,2]
[381059837,1755979834092,-743.77,0.00025473,2]
[381059838,1755979834103,-231.0663,0.00025497,2]
[381059839,1755979834113,-2000.0,0.000255,2]
[381059840,1755979834123,-844.27675029,0.00025597,3]
[381059841,1755979834132,-458.60200496,0.00025597,3]
[381059842,1755979834142,-212.10093811,0.00025597,3]
[381059843,1755979834153,-28884.18919905,0.00025597,3]
[381059844,1755979834163,-151.0,0.00025647,2]
[381059845,1755979834173,-1055.51352048,0.00025667,2]
[381059846,1755979834183,-1905.0,0.0002571,2]
[381059847,1755979834193,-5888.645,0.00025714,11]
[381059848,1755979834204,-320.334,0.00025714,11]
[381059849,1755979834215,-1000.0,0.00025751,2]
[381059850,1755979834227,-535.0,0.00025767,2]
[381059851,1755979834238,-380.0,0.000258,2]
[381059852,1755979834250,-600.0,0.00025893,2]
[381059853,1755979834261,-724.98,0.00025894,7]
[381059854,1755979834273,-1905.0,0.00025962,2]
[381059855,1755979834305,-3094.8087,0.00025973,2]
[381059856,1755979834328,-1002.0,0.00026,2]
[381059857,1755979834351,-1288.41,0.00026025,7]
[381059858,1755979834371,-1288.41,0.00026025,7]
[381059859,1755979834381,-1288.41,0.00026025,7]
[381059860,1755979834401,-1288.41,0.00026025,7]
[381059861,1755979834413,-900.0,0.00026135,10]
[381059862,1755979834444,-900.0,0.00026135,10]
[381059863,1755979834468,-900.0,0.00026135,10]
[381059864,1755979834491,-900.0,0.00026135,10]
[381059865,1755979834512,-900.0,0.00026135,10]
[381059866,1755979834525,-900.0,0.00026135,10]
[381059867,1755979834535,-900.0,0.00026135,10]
[381059868,1755979834553,-900.0,0.00026135,10]
[381059869,1755979834568,-1055.51352044,0.00026137,2]
[381059870,1755979834584,-1301.0,0.00026158,2]
[381059871,1755979834610,-276.85,0.00026183,2]
[381059872,1755979834636,-1000.0,0.00026193,2]
[381059873,1755979834650,-828.6355,0.00026193,2]
[381059874,1755979834660,-2500.0,0.00026193,2]
[381059875,1755979834670,-1302.0,0.00026277,2]
[381059876,1755979834680,-28884.18919905,0.00026293,5]
[381059877,1755979834690,-1288.41,0.00026299,7]
[381059878,1755979834699,-1288.41,0.00026299,7]
[381059879,1755979834709,-300.0,0.000263,2]
[381059880,1755979834719,-2123.95,0.00026301,5]
[381059881,1755979834728,-221.0,0.00026324,2]
[381059882,1755979834738,-500.0,0.0002634,7]
[381059883,1755979834748,-500.0,0.0002634,7]
[381059884,1755979834759,-500.0,0.0002634,7]
[381059885,1755979834768,-500.0,0.0002634,7]
[381059886,1755979834779,-500.0,0.0002634,7]
[381059887,1755979834788,-500.0,0.0002634,7]
[381059888,1755979834798,-500.0,0.0002634,7]
[381059889,1755979834808,-500.0,0.0002634,7]
[381059890,1755979834820,-500.0,0.0002634,7]
[381059891,1755979834830,-500.0,0.0002634,7]
[381059892,1755979834839,-844.27675029,0.0002634,7]
[381059893,1755979834848,-458.60200496,0.0002634,7]
[381059894,1755979834858,-212.10093811,0.0002634,7]
[381059895,1755979834867,-298.26089446,0.00026345,2]
[381059896,1755979834877,-221.0,0.00026382,2]
[381059897,1755979834886,-600.0,0.00026441,2]
[381059898,1755979834896,-3120.78883812,0.00026519,2]
[381059899,1755979834905,-276.85,0.00026567,2]
[381059900,1755979834915,-185.98,0.00026568,2]
[381059901,1755979834925,-1288.41,0.00026573,7]
[381059902,1755979834934,-1288.41,0.00026573,7]
[381059903,1755979834943,-173.7,0.00026577,2]
[381059904,1755979834953,-1079.0,0.00026577,2]
[381059905,1755979834962,-200.0,0.000266,9]
[381059906,1755979834973,-1055.51352044,0.00026608,2]
[381059907,1755979834983,-789.17,0.00026676,2]
[381059908,1755979834992,-200.0,0.00026691,2]
[381059909,1755979835002,-500.0,0.000267,9]
[381059910,1755979835011,-152.27205574,0.0002671,2]
[381059911,1755979835022,-666.97087456,0.00026715,2]
[381059912,1755979835031,-221.0,0.00026766,2]
[381059913,1755979835045,-800.0,0.000268,9]
[381059914,1755979835058,-152.27205574,0.00026826,2]
[381059915,1755979835067,-1288.41,0.00026847,7]
[381059916,1755979835077,-1288.41,0.00026847,7]
[381059917,1755979835087,-1100.0,0.000269,9]
[381059918,1755979835097,-152.27205574,0.00026942,2]
[381059919,1755979835106,-1301.0,0.00026986,2]
[381059920,1755979835119,-600.0,0.00026989,2]
[381059921,1755979835130,-28884.18919905,0.0002699,6]
[381059922,1755979835140,-666.97087457,0.00027035,2]
[381059923,1755979835150,-221.0,0.00027047,2]
[381059924,1755979835159,-1301.0,0.00027058,2]
[381059925,1755979835169,-152.27205574,0.00027058,2]
[381059926,1755979835180,-1055.51352044,0.00027078,2]
[381059927,1755979835197,-276.85,0.00027111,2]
[381059928,1755979835207,-200.0,0.0002712,2]
[381059929,1755979835216,-1288.41,0.00027121,7]
[381059930,1755979835226,-1288.41,0.00027121,7]
[381059931,1755979835236,-152.27205574,0.00027174,2]
[381059932,1755979835246,-903.8933223,0.00027178,2]
[381059933,1755979835256,-200.0,0.0002719,3]
[381059934,1755979835266,-724.98,0.00027192,7]
[381059935,1755979835276,-2000.0,0.00027203,2]
[381059936,1755979835285,-194.09843156,0.00027221,2]
[381059937,1755979835295,-500.0,0.00027228,2]
[381059938,1755979835305,-150.0,0.00027228,2]
[381059939,1755979835315,-150.0,0.00027228,2]
[381059940,1755979835324,-150.0,0.00027228,2]
[381059941,1755979835333,-150.0,0.00027228,2]
[381059942,1755979835342,-150.0,0.00027228,2]
[381059943,1755979835351,-150.0,0.00027228,2]
[381059944,1755979835361,-150.0,0.00027228,2]
[381059945,1755979835371,-500.0,0.00027228,2]
[381059946,1755979835380,-150.0,0.00027228,2]
[381059947,1755979835389,-239.93815389,0.00027228,2]
[381059948,1755979835398,-244.84615314,0.00027228,2]
[381059949,1755979835408,-200.0,0.00027228,2]
[381059950,1755979835417,-150.0,0.00027228,2]
[381059951,1755979835427,-150.0,0.00027228,2]
[381059952,1755979835437,-150.0,0.00027228,2]
[381059953,1755979835446,-150.0,0.00027228,2]
[381059954,1755979835455,-150.0,0.00027228,2]
[381059955,1755979835465,-788.0,0.00027228,2]
[381059956,1755979835474,-150.0,0.00027228,2]
[381059957,1755979835484,-500.0,0.00027228,2]
[381059958,1755979835493,-150.0,0.00027228,2]
[381059959,1755979835502,-213.12437066,0.00027241,2]
[381059960,1755979835512,-206.92906337,0.0002725,2]
[381059961,1755979835523,-5000.0,0.0002725,2]
[381059962,1755979835533,-169.17259044,0.0002729,2]
[381059963,1755979835543,-15166.0234869,0.0002729,2]
[381059964,1755979835552,-152.27205574,0.0002729,2]
[381059965,1755979835563,-1901.94400035,0.0002729,2]
[381059966,1755979835573,-1002.0,0.000273,2]
[381059967,1755979835583,-300.0,0.000273,2]
[381059968,1755979835592,-165.7,0.000273,16]
[381059969,1755979835602,-276.85,0.00027311,2]
[381059970,1755979835612,-150.0,0.00027313,2]
[381059971,1755979835621,-795.39029844,0.00027315,2]
[381059972,1755979835631,-1013.73273331,0.00027317,2]
[381059973,1755979835640,-1232.07516818,0.00027319,2]
[381059974,1755979835649,-276.85,0.0002732,2]
[381059975,1755979835659,-31400.68186187,0.00027321,3]
[381059976,1755979835738,-500.0,0.00027228,2]
[381059977,1755979835748,-5420.17591783,0.00027321,3]
[381059978,1755979835757,-825.16397471,0.00027321,2]
[381059979,1755979835769,-625.25362833,0.00027321,2]
[381059980,1755979835779,-1668.76003791,0.00027323,2]
[381059981,1755979835788,-1887.10247278,0.00027324,2]
[381059982,1755979835797,-2105.44490764,0.00027326,2]
[381059983,1755979835806,-2323.78734251,0.00027328,2]
[381059984,1755979835815,-520.2481753,0.0002733,2]
[381059985,1755979835824,-2542.12977738,0.0002733,2]
[381059986,1755979835833,-1040.4963507,0.0002733,2]
[381059987,1755979835843,-4642.81914776,0.00027331,3]
[381059988,1755979835945,-935.66626413,0.00027331,3]
[381059989,1755979835978,-16783.62373587,0.00027331,3]
[381059999,1755979838329,-617.9175402,0.00013698,2]
[381060000,1755979838339,-283.096,0.00026767,2]
[381060001,1755979838349,-125.4287829,0.00027228,2]
[381060002,1755979838381,-24.5712171,0.00027228,2]
[381060003,1755979838391,-1251.5928275,0.00027331,3]
[381060004,1755979838407,-2944.942,0.00027331,3]
[381060005,1755979838435,-1805.65673875,0.00027331,3]
[381060006,1755979838447,-711.65219875,0.00027331,3]
[381060099,1755979841142,-44565.76264654,0.00027331,3]
[381060100,1755979841151,-333.4057478,0.00027331,2]
[381060101,1755979841161,-575.71383,0.0002734,2]
[381060102,1755979841170,-161.0,0.0002734,7]
[381060103,1755979841179,-8328.81483331,0.0002734,3]
[381060104,1755979841243,-175775.47406469,0.0002734,3]
[381060105,1755979841252,-135947.189933,0.0002734,3]
[381060106,1755979841262,-302.0,0.0002734,7]
[381060107,1755979841271,-20427.44135315,0.0002734,7]
[381060108,1755979841280,-65384.56723038,0.0002734,7]
[381060109,1755979841291,-800.0,0.0002734,7]
[381060110,1755979841302,-774.42425797,0.0002734,7]
[381060111,1755979841313,-475.14628286,0.0002734,7]
[381060112,1755979841325,-7150.35657527,0.0002734,7]
[381060113,1755979841336,-24907.675,0.0002734,7]
[381060114,1755979841360,-1255.07221535,0.0002734,7]
[381060115,1755979841376,-22490.0,0.0002734,7]
[381060126,1755979843519,-335.86255817,0.0002734,7]
[381060127,1755979843681,-230149.68335932,0.0002734,7]
[381060128,1755979843691,-844.27675029,0.0002734,3]
[381060129,1755979843700,-294566.862237,0.0002734,3]
[381060130,1755979843710,-34234.56900961,0.0002734,3]
[381060131,1755979843721,-264849.24884339,0.0002734,3]
[381060132,1755979843730,-36820.8577797,0.00027348,3]
[381060133,1755979843739,-31116.89338071,0.00027348,3]
[381060143,1755979846279,-262.6,0.00027348,3]
[381060144,1755979846290,-1748.678487,0.00027348,3]
[381060145,1755979846335,-75629.58007829,0.00027348,3]
[381060146,1755979846344,-3691.07,0.0002735,2]
[381060147,1755979846354,-215.5238,0.0002735,7]
[381060148,1755979846364,-215.5238,0.0002735,7]
[381060149,1755979846374,-1637.740099,0.0002735,7]
[381060150,1755979846385,-215.5238,0.0002735,7]
[381060151,1755979846395,-1637.740099,0.0002735,7]
[381060152,1755979846405,-215.5238,0.0002735,7]
[381060153,1755979846414,-1637.740099,0.0002735,7]
[381060154,1755979846423,-1637.740099,0.0002735,7]
[381060155,1755979846432,-414.829687,0.0002735,7]
[381060156,1755979846441,-151.0,0.0002735,7]
[381060157,1755979846450,-414.829687,0.0002735,7]